[Event "FIDE Candidates 2026"]
[White "Wei,Yi"]
[Black "Bluebaum,Matthias"]
[Site "Agios Georgios Pegeia"]
[Round "8.4"]
[Annotator "TA"]
[Result "1/2-1/2"]
[Date "2026.04.07"]
[WhiteElo "2754"]
[BlackElo "2698"]
[PlyCount "103"]
[TimeControl "60"]

{[%evp 18,103,16,12,21,0,2,0,18,3,4,0,0,9,16,0,50,39,42,-7,4,-81,52,32,46,50,50,54,52,36,42,26,33,37,41,22,23,10,64,13,70,59,69,57,68,50,68,0,0,0,0,0,0,0,0,0,0,0,0,0,0,0,0,0,0,0,0,0,0,0,0,0,0,0,0,0,0,0,0,0,0,0,0,0,0,0,0,0]} 1. e4 {[%emt 0:0:7]} e5 {[%emt 0:0:6]} 2. Nc3 {[%emt 0:0:17]} Nf6 {[%emt 0:0:11]} 3. Bc4 {[%emt 0:0:27]} Nc6 {[%emt 0:0:43]} 4. d3 {[%emt 0:0:19]} Bb4 {[%emt 0:0:19]} 5. Nf3 {[%emt 0:0:26]} d5 {[%emt 0:1:4]} 6. exd5 {[%emt 0:0:8]} Nxd5 {[%emt 0:0:5]} 7. O-O {[%emt 0:0:8]} Bxc3 {[%emt 0:0:7]} 8. bxc3 {[%emt 0:0:4]} Bg4 {[%emt 0:0:6]} 9. Re1 {[%emt 0:1:33]} O-O {[%emt 0:1:27]} 10. Bd2 {[%emt 0:0:9]} Bh5 $146 {[%emt 0:0:47] C28: Vienna Game: 2...Nf6 3 Bc4 Nc6.} ({Predecessor:} 10... Qd6 11. Rb1 Bh5 12. h3 Rad8 13. g4 Bg6 14. Nh4 Nb6 15. Bb3 Na5 16. Nxg6 hxg6 17. Qf3 c6 18. c4 Nxb3 19. Rxb3 {1-0 Aronian,L (2745)-Giri,A (2768) Warsaw Superbet Rapid 2023 (3)} )11. a4 {[%emt 0:3:48]} Kh8 {[%emt 0:12:49]} 12. a5 {[%emt 0:9:54]} Rb8 {[%emt 0:5:25]} 13. Bb5 {[%emt 0:25:51]} Nde7 {[%emt 0:12:40]} 14. Ra4 {[%emt 0:0:43]} Qd5 {[%emt 0:11:8]} 15. Bc4 {[%emt 0:3:46]} Qd6 {[%emt 0:10:44]} 16. Bc1 {[%emt 0:18:52]} f6 {[%emt 0:11:2]} ({Black should try} 16... f5 $11 17. Qe2 b5 18. axb6 axb6 )17. Ba3 $14 {[%emt 0:1:44]} Qd7 {[%emt 0:0:15]} 18. Bb5 {[%emt 0:0:28]} (18. Bb3 $14 )Rfd8 {[%emt 0:6:35]} 19. Rh4 {[%emt 0:6:26]} (19. Bxe7 $11 {remains equal.} Qxe7 20. Bxc6 bxc6 21. Rh4 )Bf7 {[%emt 0:2:6]} (19... Qf5 $17 20. a6 Nd5 )20. Bxe7 {[%emt 0:2:13]} Qxe7 {[%emt 0:0:3]} 21. d4 {[%emt 0:1:16]} Bg6 {[%emt 0:10:30]} 22. a6 {[%emt 0:2:18]} Qd6 {[%emt 0:2:57]} 23. Bd3 {[%emt 0:6:25]} Bxd3 {[%emt 0:0:32]} 24. Qxd3 {[%emt 0:0:3]} h6 {[%emt 0:0:3] Successful Defense Black} 25. axb7 {[%emt 0:1:46]} Rxb7 {[%emt 0:6:23]} 26. g4 {[%emt 0:2:38]} Kg8 {[%emt 0:4:0]} 27. Rh5 {[%emt 0:5:6]} Qd7 {[%emt 0:1:35]} (27... Qd5 $11 )28. h3 {[%emt 0:2:31]} (28. dxe5 $2 Qxg4+ 29. Kh1 Rxd3 $19 )(28. Qg6 $14 Qd5 (28... Ne7 $2 29. Qe4 $18 )29. Kg2 )Qf7 {[%emt 0:0:49]} (28... a5 $11 )29. Qe4 {[%emt 0:0:26]} Qd5 {[%emt 0:0:48]} 30. Qe2 {[%emt 0:1:15]} Re8 {[%emt 0:1:21]} 31. c4 {[%emt 0:8:50]} Qf7 {[%emt 0:2:29]} 32. Qe4 {[%emt 0:2:32]} ({Better is} 32. dxe5 $14 Nxe5 33. Nxe5 Rxe5 34. Rxe5 fxe5 35. Qxe5 )Qxc4 $11 {[%emt 0:2:34] The position is equal.} 33. Rxh6 {[%emt 0:1:19]} gxh6 {[%emt 0:1:36]} 34. Qg6+ {[%emt 0:0:2]} Kf8 {[%emt 0:0:2]} 35. Qxf6+ {[%emt 0:0:4]} (35. Qxh6+ $6 Ke7 36. dxe5 Kd7 (36... Qxc2 $2 37. exf6+ Kd7 38. Qg7+ Kd6 39. f7 $18 )37. Rd1+ Kc8 38. exf6 Rb6 $17 (38... Qxc2 39. Rd2 $17 ))Kg8 {[%emt 0:0:36]} 36. Qg6+ {[%emt 0:0:7]} (36. Qxh6 Re7 37. Qg6+ (37. dxe5 Qxc2 38. e6 Rb8 $19 )Kf8 38. Qf6+ (38. dxe5 Qe6 $17 )Ke8 39. dxe5 Rf7 $17 (39... Qxc2 40. e6 $17 ))Kf8 {[%emt 0:0:1]} 37. Qf6+ {[%emt 0:1:4]} (37. dxe5 $6 Re6 38. Qf5+ Ke8 $17 )Kg8 {[%emt 0:0:2]} 38. Qg6+ {[%emt 0:0:11]} (38. Qxh6 $6 Re7 39. Qg6+ (39. dxe5 $2 {loses.} Qe6 $19 )Kf8 40. Qf6+ (40. dxe5 Qe6 $19 )Ke8 41. dxe5 Rf7 $15 (41... Qxc2 42. e6 $11 ))Kf8 {[%emt 0:0:2]} 39. Qxh6+ {[%emt 0:0:6]} ({Much worse is} 39. dxe5 $6 Re6 40. Qf5+ Ke8 $19 )Kg8 {[%emt 0:1:3]} 40. Qg6+ {[%emt 0:0:0]} Kf8 {[%emt 0:0:0][%cal Oe8e7]} 41. Qf6+ {[%emt 0:28:37]} Kg8 {[%emt 0:0:58]} 42. Ng5 {[%emt 0:0:24] Chess con chili.} Nxd4 {[%emt 0:12:24]} 43. Qg6+ {[%emt 0:0:7]} Kf8 {[%emt 0:0:1]} 44. Qf6+ {[%emt 0:0:13]} Kg8 {[%emt 0:0:15]} 45. Qg6+ {[%emt 0:0:5]} Kf8 {[%emt 0:0:1][%cal Bg8f8,Bf8e7,Be7d8,Bd8d7][%mdl 32]} 46. Qh6+ {[%emt 0:0:8]} Ke7 {[%emt 0:0:8]} 47. Rxe5+ {[%emt 0:0:5]} Kd8 {[%emt 0:0:27]} 48. Qf6+ {[%emt 0:0:39]} Kd7 {[%emt 0:0:1]} 49. Qg7+ {[%emt 0:0:16]} Kd8 {[%emt 0:1:59]} 50. Qf6+ {[%emt 0:1:36]} Kd7 {[%emt 0:0:3]} 51. Qg7+ {[%emt 0:0:7]} Kd8 {[%emt 0:0:1]} 52. Qf6+ {[%emt 0:0:22] Weighted Error Value: White=0.11 (very precise) /Black=0.15 (very precise)   Mistake:       	White=4     	Black=4      OK:         	White=18    	Black=4      Best:        	White=2     	Black=17} 1/2-1/2

[Event "FIDE Candidates 2026"]
[White "Bluebaum,Matthias"]
[Black "Sindarov,Javokhir"]
[Site "Agios Georgios Pegeia"]
[Round "9.1"]
[Annotator "TA"]
[Result "1/2-1/2"]
[Date "2026.04.08"]
[WhiteElo "2698"]
[BlackElo "2745"]
[PlyCount "119"]
[TimeControl "60"]

{[%evp 9,119,25,25,18,41,27,31,38,25,41,97,39,36,29,24,4,29,0,0,0,0,-70,-66,-55,-55,-77,-68,-81,-15,-62,-73,-88,-89,-106,-102,-147,-156,-259,-266,-203,-53,-53,-54,-52,-54,-54,-50,-59,-58,-62,-55,-58,-33,-36,0,0,0,0,0,0,0,0,0,0,0,0,0,0,0,0,0,0,0,0,0,0,0,0,0,0,0,0,0,0,0,0,0,0,0,0,0,0,0,0,0,0,0,0,0,0,0,0,0,0,0,0,0,0,0,0,0,0]} 1. d4 {[%emt 0:0:4]} d5 {[%emt 0:0:6][%cal Bd7d5,Bd5c4][%mdl 32]} 2. c4 {[%emt 0:0:5]} e6 {[%emt 0:0:3]} 3. Nf3 {[%emt 0:0:5]} Nf6 {[%emt 0:0:5]} 4. Nc3 {[%emt 0:0:4]} Be7 {[%emt 0:0:4]} 5. Bf4 {[%emt 0:0:29]} dxc4 {[%emt 0:0:8]} 6. e4 {[%emt 0:4:10] Against Nd5. D37: Queen's Gambit Declined: 5 Bf4.} b5 {[%emt 0:0:6]} 7. Nxb5 {[%emt 0:0:40]} Bb4+ {[%emt 0:0:10]} 8. Bd2 {[%emt 0:8:45] White is slightly better.} Bxd2+ {[%emt 0:0:19]} 9. Nxd2 {[%emt 0:0:36]} O-O $146 {[%emt 0:2:21]} (9... Ba6 $14 10. Bxc4 Bxb5 11. Bxb5+ c6 )({Predecessor:} 9... a6 10. Nc3 Qxd4 11. Nxc4 e5 12. f3 Be6 13. Qa4+ Nfd7 14. Rd1 Qc5 15. Nd5 O-O {1-0 Lubbe,N (2500)-Fries Nielsen,J (2375) Fredericia 2016 (4)} )10. Bxc4 {[%emt 0:6:23] White is more active.} ({Much worse is} 10. Nxc4 $6 Nxe4 11. Bd3 Bb7 $11 )(10. e5 $16 Nd5 11. Bxc4 )a6 $14 {[%emt 0:1:37]} 11. Nc3 {[%emt 0:0:9]} Qxd4 {[%emt 0:0:58]} 12. Qe2 {[%emt 0:1:50]} Bb7 {[%emt 0:5:56]} 13. O-O-O {[%emt 0:11:12]} Qb6 {[%emt 0:17:37]} 14. f4 {[%emt 0:12:38]} Nbd7 {[%emt 0:7:2]} 15. g4 {[%emt 0:7:2]} (15. Bd3 $11 )Nc5 $15 {[%emt 0:0:57]} 16. g5 {[%emt 0:1:32]} Ne8 {[%emt 0:1:0]} 17. Bb3 {[%emt 0:16:15]} Nd6 {[%emt 0:4:9]} 18. Bc2 {[%emt 0:1:2]} a5 {[%emt 0:0:36]} (18... Rab8 $17 19. Nb3 Nb5 20. Nxb5 Nxb3+ (20... axb5 21. Nxc5 Qxc5 22. Kb1 $11 )21. Bxb3 axb5 (21... Qxb5 22. Rhe1 $14 ))19. Nc4 {[%emt 0:6:43]} (19. Rhe1 $11 )Nxc4 {[%emt 0:2:0]} 20. Qxc4 {[%emt 0:0:6]} Rfb8 {[%emt 0:6:12]} 21. Qd4 {[%emt 0:5:10]} Bc6 {[%emt 0:1:31]} 22. b3 {[%emt 0:3:38]} a4 {[%emt 0:8:6]} 23. Nxa4 {[%emt 0:0:20]} (23. b4 $17 Qxb4 24. Qxb4 Rxb4 25. Rhe1 )Nxa4 $19 {[%emt 0:3:54]} 24. bxa4 {[%emt 0:0:3]} Bxa4 {[%emt 0:0:11]} 25. Qxb6 $15 {[%emt 0:3:1]} cxb6 {[%emt 0:0:32]} 26. Bb3 {[%emt 0:1:40]} Bxb3 {[%emt 0:0:9]} 27. axb3 {[%emt 0:0:2][%mdl 4096] Endgame KRR-KRR} Ra2 {[%emt 0:0:8]} 28. Kb1 {[%emt 0:0:3]} Rba8 {[%emt 0:1:6]} 29. f5 {[%emt 0:3:2]} exf5 {[%emt 0:11:29]} 30. exf5 {[%emt 0:0:39]} R2a5 {[%emt 0:0:4]} 31. Rhf1 {[%emt 0:0:57]} g6 {[%emt 0:0:14]} 32. fxg6 {[%emt 0:0:54] The position is equal.} hxg6 {[%emt 0:0:33]} 33. h4 {[%emt 0:0:6]} Ra2 {[%emt 0:0:6]} 34. Rd8+ {[%emt 0:4:59]} Rxd8 {[%emt 0:0:7]} 35. Kxa2 $11 {[%emt 0:0:3] KR-KR} Rd4 {[%emt 0:0:5]} 36. Rh1 {[%emt 0:0:7]} b5 {[%emt 0:0:5]} 37. Kb2 {[%emt 0:7:28]} b4 {[%emt 0:0:43]} 38. Kc2 {[%emt 0:0:5]} Kg7 {[%emt 0:0:32]} 39. Rh2 {[%emt 0:0:32]} f5 {[%emt 0:1:21]} 40. gxf6+ {[%emt 0:0:0]} Kxf6 {[%emt 0:0:0]} 41. Rh1 {[%emt 0:3:46]} Kf7 {[%emt 0:7:46]} 42. Rh2 {[%emt 0:0:37]} Kg8 {[%emt 0:5:4]} 43. h5 {[%emt 0:1:1]} g5 {[%emt 0:0:4][%cal Bg6g5,Bg5g4][%mdl 32]} 44. h6 {[%emt 0:1:2]} Rh4 {[%emt 0:0:6]} 45. Rg2 {[%emt 0:0:4]} g4 {[%emt 0:0:6]} 46. Kd3 {[%emt 0:0:3]} Kh7 {[%emt 0:0:5]} 47. Ke4 {[%emt 0:1:4]} Kxh6 {[%emt 0:0:16]} 48. Kf5 {[%emt 0:0:10]} Rh5+ {[%emt 0:1:49]} 49. Kf4 {[%emt 0:0:5]} Rh3 {[%emt 0:0:20]} 50. Kxg4 {[%emt 0:0:37]} Rxb3 {[%emt 0:0:6]} 51. Kf4 {[%emt 0:0:2]} Rc3 {[%emt 0:0:14]} 52. Rb2 {[%emt 0:0:7]} b3 {[%emt 0:0:6]} 53. Ke4 {[%emt 0:0:3]} Rc4+ {[%emt 0:0:4]} 54. Kd3 {[%emt 0:0:4]} Rb4 {[%emt 0:0:3]} 55. Kc3 {[%emt 0:0:3][%csl LRb3,LRb4]} Rb8 {[%emt 0:0:4]} 56. Rb1 {[%emt 0:0:3]} b2 {[%emt 0:0:4]} 57. Kc2 {[%emt 0:0:2]} Rc8+ {[%emt 0:0:5]} 58. Kxb2 {[%emt 0:0:4]} Rb8+ {[%emt 0:0:5]} 59. Kc2 {[%emt 0:0:4]} Rxb1 {[%emt 0:0:5]} 60. Kxb1 {[%emt 0:0:2] Weighted Error Value: White=0.12 (very precise) /Black=0.10 (very precise)   Mistake:       	White=4     	Black=3      Inaccurate:     	White=2     	Black=1      OK:         	White=7     	Black=9      Best:        	White=2     	---} 1/2-1/2

[Event "FIDE Candidates 2026"]
[White "Caruana,Fabiano"]
[Black "Giri,Anish"]
[Site "Agios Georgios Pegeia"]
[Round "9.2"]
[Annotator "TA"]
[Result "0-1"]
[Date "2026.04.08"]
[WhiteElo "2795"]
[BlackElo "2753"]
[PlyCount "86"]
[TimeControl "60"]

{[%evp 12,85,8,8,8,0,11,11,11,11,20,19,22,12,23,6,8,-12,2,-5,0,-18,-8,-27,-29,-19,-18,-20,-25,-39,-39,-35,-35,-43,-37,-47,-42,-56,-56,-62,-62,-68,-62,-58,-65,-62,-58,-64,-58,-64,0,-74,-53,-75,-75,-75,-75,-110,-118,-127,-104,-127,-81,-81,-87,-259,-221,-267,-264,-263,-252,-264,-254,-29982,-29983,-29981]} 1. e4 {[%emt 0:0:3]} e5 {[%emt 0:0:4]} 2. Nf3 {[%emt 0:0:8]} Nc6 {[%emt 0:0:4]} 3. Bc4 {[%emt 0:0:9]} Bc5 {[%emt 0:0:5]} 4. O-O {[%emt 0:1:41]} Nf6 {[%emt 0:0:17]} 5. d3 {[%emt 0:0:16]} O-O {[%emt 0:0:7]} 6. Nbd2 {[%emt 0:0:59]} d6 {[%emt 0:0:11]} 7. c3 {[%emt 0:0:5]} a5 {[%emt 0:0:46] C54: Giuoco Piano: 4 c3 Nf6, main lines with 5 d4 and 5 d3.} 8. h3 {[%emt 0:0:41]} Be6 {[%emt 0:1:48]} 9. Bb5 {[%emt 0:2:53]} Ba7 $1 {[%emt 0:0:21][%mdl 4] The position is equal. is recently more successful than 9...h6.} 10. Re1 {[%emt 0:2:40]} Ne7 {[%emt 0:0:48]} 11. d4 {[%emt 0:0:5]} Ng6 {[%emt 0:0:18]} 12. Bd3 {[%emt 0:0:20]} Nh5 {[%emt 0:3:1][%cal Bf6h5,Bh5f4,Bf4d3][%mdl 32]} 13. Nf1 {[%emt 0:10:27]} Nhf4 {[%emt 0:2:20]} 14. Ng3 {[%emt 0:0:37]} Nxd3 $146 {[%emt 0:13:10]} ({Predecessor:} 14... exd4 15. cxd4 Nxd3 16. Qxd3 d5 17. e5 f6 18. exf6 Qxf6 19. Bg5 Qf7 20. Kh2 c6 {½-½ Sklokin,S (2329)-Lu,M (2441) Budapest One Week GM-A 12 2024 (6)} )15. Qxd3 {[%emt 0:0:19]} a4 {[%emt 0:6:28]} 16. d5 {[%emt 0:20:54]} Bd7 {[%emt 0:0:27]} 17. Bg5 {[%emt 0:0:39]} f6 {[%emt 0:4:8]} 18. Be3 {[%emt 0:0:27]} Bxe3 {[%emt 0:7:25]} 19. fxe3 {[%emt 0:0:38]} b5 {[%emt 0:1:17]} 20. b4 {[%emt 0:9:39]} axb3 {[%emt 0:1:14]} 21. axb3 {[%emt 0:0:5]} Qb8 {[%emt 0:18:44]} 22. c4 {[%emt 0:1:5]} Qb6 {[%emt 0:1:11]} 23. Nf5 {[%emt 0:7:24]} Rfe8 {[%emt 0:2:24]} 24. N3h4 {[%emt 0:17:55]} b4 {[%emt 0:5:57]} 25. Kh2 {[%emt 0:5:55]} Ra3 {[%emt 0:4:19]} 26. Rab1 {[%emt 0:0:5]} Ra2 {[%emt 0:5:57]} 27. Qd1 {[%emt 0:15:3]} Nxh4 {[%emt 0:3:18]} 28. Nxh4 {[%emt 0:0:3]} Rea8 {[%emt 0:0:9] Black has more active pieces.} 29. Re2 {[%emt 0:2:4]} Qa7 {[%emt 0:9:48]} 30. Rc1 {[%emt 0:1:19][%cal Oc4c5]} Qb6 {[%emt 0:3:30]} (30... Ra5 $15 )31. Nf3 {[%emt 0:1:37]} (31. Rb1 $1 $11 )h6 {[%emt 0:2:14]} 32. Ne1 {[%emt 0:3:26]} Kh7 {[%emt 0:5:15]} 33. Rxa2 {[%emt 0:3:27]} Rxa2 {[%emt 0:0:2]} 34. Nc2 {[%emt 0:0:5] [#]} Be8 $1 {[%emt 0:3:1]} 35. Qd3 {[%emt 0:0:48]} Bg6 {[%emt 0:0:33]} 36. Ra1 {[%emt 0:2:23]} Rxa1 {[%emt 0:4:59]} (36... Rb2 $142 37. Ra4 c5 )37. Nxa1 $17 {[%emt 0:0:3][%mdl 4096] Endgame KQB-KQN} c5 {[%emt 0:0:8]} 38. Kg3 $2 {[%emt 0:1:40] This costs White the game.} (38. dxc6 $17 Qxc6 39. Nc2 )Qa7 {[%emt 0:1:21]} 39. Qb1 {[%emt 0:0:36]} h5 {[%emt 0:1:35]} 40. Kf3 {[%emt 0:0:0]} h4 {[%emt 0:0:0]} 41. Kg4 {[%emt 0:14:4]} Qe7 {[%emt 0:2:27]} 42. Qd3 $2 {[%emt 0:0:5] [#]} (42. Kf3 $19 )f5+ {[%emt 0:6:29]} 43. exf5 {[%emt 0:0:4]} Kh6 {[%emt 0:0:16] Weighted Error Value: White=0.36/Black=0.06 (flawless)   Loses game:     	White=1     	---        Mistake:       	White=2     	Black=2      Inaccurate:     	White=1     	---        OK:         	White=4     	Black=13     Strong:       	---       	Black=1} 0-1

[Event "FIDE Candidates 2026"]
[White "Praggnanandhaa R"]
[Black "Wei,Yi"]
[Site "Agios Georgios Pegeia"]
[Round "9.3"]
[Annotator "TA"]
[Result "1/2-1/2"]
[Date "2026.04.08"]
[WhiteElo "2741"]
[BlackElo "2754"]
[PlyCount "111"]
[TimeControl "60"]

{[%evp 16,110,31,27,28,19,29,0,19,31,31,31,39,28,30,34,31,39,36,10,14,0,0,0,0,0,10,0,43,16,67,58,82,0,75,67,77,66,68,76,85,88,78,78,137,130,410,427,440,410,409,425,433,408,376,442,435,441,426,434,389,227,230,141,201,206,248,155,210,23,17,0,0,0,0,6,2,3,3,-7,9,2,2,9,11,9,1,0,0,0,0,0,0,-14,-18,-17,-15]} 1. d4 {[%emt 0:0:15]} Nf6 {[%emt 0:0:7]} 2. c4 {[%emt 0:0:10]} e6 {[%emt 0:0:6]} 3. Nf3 {[%emt 0:0:5]} d5 {[%emt 0:0:7]} 4. Nc3 {[%emt 0:0:5]} c5 {[%emt 0:0:10]} 5. Bg5 {[%emt 0:0:9]} cxd4 {[%emt 0:2:46]} 6. Nxd4 {[%emt 0:0:28]} dxc4 {[%emt 0:9:2]} 7. e3 {[%emt 0:0:46]} Be7 {[%emt 0:8:40]} 8. Bxc4 {[%emt 0:0:11]} O-O {[%emt 0:1:47]} 9. O-O {[%emt 0:0:9]} Bd7 {[%emt 0:0:38] D50: Queen's Gambit Declined: Dutch-Peruvian Gambit.} 10. Nf3 {[%emt 0:0:28]} Nc6 {[%emt 0:2:24]} 11. e4 {[%emt 0:0:6]} Rc8 $146 {[%emt 0:17:47]} ({Predecessor:} 11... e5 12. h3 Rc8 13. a3 a6 14. Rc1 b5 15. Bb3 Rb8 16. Be3 b4 17. axb4 Bxb4 {1-0 Iniyan,P (2586)-Harika,D (2487) Chennai Quantbox-B 2025 (2)} )12. Qe2 {[%emt 0:1:19]} Ng4 {[%emt 0:1:25]} 13. Bf4 {[%emt 0:5:10]} Bf6 {[%emt 0:1:45]} 14. Bd6 {[%emt 0:3:46]} Re8 {[%emt 0:8:32]} 15. Rad1 {[%emt 0:16:57]} Nge5 {[%emt 0:0:17]} 16. Nxe5 {[%emt 0:1:49]} Bxe5 {[%emt 0:0:6]} 17. Bb3 {[%emt 0:10:46]} Qb6 {[%emt 0:14:40]} 18. Bxe5 {[%emt 0:14:43]} Nxe5 {[%emt 0:0:28]} 19. Kh1 {[%emt 0:0:9]} Rcd8 {[%emt 0:5:33]} 20. Qh5 {[%emt 0:7:56]} Nc6 {[%emt 0:9:48]} 21. e5 {[%emt 0:2:0]} Qb4 {[%emt 0:10:34] Repels Ne4} 22. Rd3 {[%emt 0:9:40]} Qf4 {[%emt 0:3:55]} (22... Rf8 $11 )23. Rf3 $14 {[%emt 0:2:41]} Qxe5 {[%emt 0:0:6]} 24. Qxf7+ {[%emt 0:0:7]} Kh8 {[%emt 0:0:2]} 25. Rd1 {[%emt 0:5:26]} Bc8 {[%emt 0:0:58] [#] ( -> ...Rxd1+)} 26. h3 {[%emt 0:7:0]} Rxd1+ {[%emt 0:2:25]} 27. Nxd1 {[%emt 0:3:39]} Rg8 {[%emt 0:1:24]} 28. Re3 {[%emt 0:1:45]} Qd6 {[%emt 0:7:5]} 29. Nc3 $40 {[%emt 0:5:11][%cal Bd1c3,Bc3e4,Be4d6][%mdl 160] White has strong attack. White is much more active.} (29. Bxe6 $2 Qxd1+ 30. Kh2 Qd6+ 31. Kg1 Rf8 $19 )Nd4 {[%emt 0:0:6]} ({Better is} 29... Qd8 )30. Ne4 $16 {[%emt 0:2:30]} Qe5 {[%emt 0:1:19][%mdl 8192]} (30... Qf8 $16 31. Ng5 Qc5 )31. f4 $18 {[%emt 0:3:3]} Qf5 {[%emt 0:2:13]} 32. Nd6 {[%emt 0:0:50][%csl LRb7,LRf5]} Qc5 {[%emt 0:0:32]} 33. Qe7 {[%emt 0:1:41][%cal Rd6f7]} (33. Nxb7 $2 Qc1+ $19 )(33. Nc4 b5 34. Re5 Qb4 $17 )Qc1+ {[%emt 0:0:6]} 34. Kh2 {[%emt 0:0:3][%cal Rd6f7]} h6 {[%emt 0:0:4]} 35. Re4 {[%emt 0:1:19]} Nxb3 {[%emt 0:2:24]} 36. axb3 {[%emt 0:0:59]} Kh7 {[%emt 0:0:1]} 37. Rc4 {[%emt 0:3:46]} Qd2 {[%emt 0:0:1]} 38. Qc7 {[%emt 0:0:44]} ({Stronger than} 38. Rxc8 Qxf4+ 39. Kh1 Rxc8 40. Nxc8 Qc1+ 41. Kh2 Qxc8 $17 )(38. Nxc8 $142 Rxc8 39. Rxc8 Qxf4+ 40. Kg1 Qe3+ 41. Kf1 Qd3+ 42. Ke1 Qe4+ 43. Kd2 )b5 {[%emt 0:0:1]} 39. Re4 {[%emt 0:0:43]} (39. Nxb5 Ba6 40. Rc2 Qd1 41. Nxa7 Bb7 $11 )Qd3 {[%emt 0:0:14]} (39... Ba6 $16 )40. Re1 {[%emt 0:0:0]} Qd2 {[%emt 0:0:0]} 41. Rf1 {[%emt 0:9:55]} Ba6 {[%emt 0:19:3] [#]} 42. Qc6 $2 {[%emt 0:11:17]} (42. b4 $1 $18 )Rd8 $11 {[%emt 0:0:8]} 43. Nf7 {[%emt 0:1:12] The position is equal.} (43. Nxb5 $2 Qe2 44. Qc4 Bxb5 $19 )Rd7 {[%emt 0:0:18]} 44. Qe4+ {[%emt 0:6:20]} (44. Qxe6 $2 Bb7 45. Qf5+ g6 46. Ng5+ hxg5 47. Qxg5 Be4 $19 (47... Qxb2 48. Re1 $15 ))g6 {[%emt 0:0:14]} 45. f5 {[%emt 0:1:23]} exf5 {[%emt 0:2:34]} 46. Qe8 {[%emt 0:1:21]} Qd4 {[%emt 0:0:13] Prevents Qh8+} 47. Rf3 {[%emt 0:1:17]} Rc7 {[%emt 0:8:53]} 48. Ne5 {[%emt 0:2:18]} Rg7 {[%emt 0:0:25]} 49. Nf7 {[%emt 0:0:35] Prevents Qe4} Rg8 {[%emt 0:0:5]} 50. Qe7 {[%emt 0:0:5][%mdl 1024] White has compensation.} Qg7 {[%emt 0:0:9]} 51. Rd3 {[%emt 0:1:9]} Bc8 {[%emt 0:0:59] Prevents Rd7.} (51... Rf8 $5 52. Rd7 $8 (52. Qxa7 $2 Bc8 $19 )Kg8 53. Rxa7 Rxf7 54. Qe8+ Qf8 55. Qxf8+ Kxf8 56. Rxa6 Kg7 $11 )52. Rc3 {[%emt 0:0:25]} (52. Qxa7 $2 Be6 (52... Qxb2 53. Ng5+ Kh8 54. Qh7# )(52... Rf8 $2 53. Qc5 $19 )53. Qc5 Bxf7 $19 )Rf8 {[%emt 0:0:9]} 53. Rc7 {[%emt 0:0:14][%cal Of7g5] Threatening mate with Ng5+!.} (53. Qxa7 $2 {is the wrong capture.} Rxf7 54. Qc5 Bb7 $19 )Kg8 {[%emt 0:0:8]} 54. Nd6 {[%emt 0:0:53]} Qxe7 {[%emt 0:0:10]} 55. Rxe7 {[%emt 0:0:4]} a6 {[%emt 0:2:28]} 56. Nxc8 {[%emt 0:0:45] Black escapes into a draw.   Weighted Error Value: White=0.20 (precise) /Black=0.16 (very precise)   Loses game:     	---       	Black=1      Missed win:     	White=1     	---        Mistake:       	White=1     	Black=3      Inaccurate:     	White=5     	Black=2      OK:         	White=2     	Black=4} 1/2-1/2